bitfinex/quotes_ETHUSD_20220227
["timestamp","ask_amount","ask_price","bid_price","bid_amount"]
[1645964146853,0.66468051,2816.1,2815.4,0.0008]
[1645964147255,0.66468051,2816.2,2815.4,0.0008]
[1645964147711,0.91468051,2816.6,2816.1,1.08813616]
[1645964148310,0.25,2816.6,2816.1,10.65035776]
[1645964148509,0.25,2816.6,2816.1,1.08813616]
[1645964149517,0.00251631,2816.5,2816.1,1.08813616]
[1645964149916,0.00251631,2816.5,2816.2,11.1639]
[1645964150113,0.00251631,2816.5,2816.4,10.81]
[1645964150314,0.05,2817.1,2816.4,17.9113]
[1645964150517,0.05,2817.1,2816.4,7.1013]
[1645964150716,0.00615194,2816.5,2816.4,7.1013]
[1645964151459,0.00615194,2816.5,2816.4,17.9113]
[1645964151647,0.05,2817.1,2816.4,7.1013]
[1645964151850,0.00615181,2816.6,2816.4,7.1013]
[1645964152450,0.00615181,2816.6,2816.4,7.0513]
[1645964152853,0.25,2817.1,2816.4,7.0513]
[1645964153058,0.00615175,2816.6,2816.4,7.0513]
[1645964153956,0.05,2816.9,2816.4,7.0513]
[1645964154155,0.06093158,2816.5,2816.4,7.05528476]
[1645964156097,0.06093158,2816.5,2816.4,8.20930427]
[1645964156697,0.00615181,2816.6,2816.5,18.3709]
[1645964157099,5.181e-05,2816.6,2816.5,18.3709]
[1645964157397,5.181e-05,2816.6,2816.5,25.5219]
[1645964157596,0.05,2817.2,2816.5,25.5219]
[1645964157803,0.05,2817.2,2816.6,14.31]
[1645964158307,0.05,2817.2,2816.9,1.14392276]
[1645964158500,0.0035881,2817.3,2817.0,3.5]
[1645964158700,0.0035881,2817.3,2816.9,1.14392276]
[1645964159566,0.05,2817.2,2816.6,3.5]
[1645964159769,0.05,2817.2,2816.5,7.151]
[1645964160369,0.00615123,2817.0,2816.5,7.151]
[1645964160566,0.00615123,2817.0,2816.5,19.11464903]
[1645964161167,0.05,2817.2,2816.5,19.11464903]
[1645964161368,0.00615142,2816.9,2816.5,19.11464903]
[1645964161568,0.00615142,2816.9,2816.6,10.81]
[1645964161768,0.00615142,2816.9,2816.8,10.81]
[1645964162370,0.05,2817.2,2816.8,10.81]
[1645964162569,0.00615129,2817.0,2816.7,7.1505]
[1645964163610,0.05,2817.2,2816.7,7.1505]
[1645964163807,0.00615129,2817.0,2816.7,7.1505]
[1645964164206,0.04625058,2816.9,2816.7,7.1505]
[1645964165108,0.05240194,2816.9,2816.7,7.1505]
[1645964165908,0.04625058,2816.9,2816.7,7.1505]
[1645964166308,0.05240194,2816.9,2816.7,7.1505]
[1645964166569,0.05,2816.8,2816.7,5.54928625]
[1645964167166,0.29974157,2816.8,2816.7,3.14722009]
[1645964167363,0.05,2816.8,2816.7,3.14722009]
[1645964167565,0.31994157,2816.8,2816.7,3.14722009]
[1645964168372,0.2762283,2816.8,2816.7,3.14722009]
[1645964168574,0.3694983,2816.8,2816.7,3.14722009]
[1645964168974,0.3694983,2816.8,2816.7,3.04722009]
[1645964169372,0.3694983,2816.8,2816.7,3.03062009]
[1645964169574,0.41573215,2816.8,2816.7,3.00962009]
[1645964170609,0.41573215,2816.8,2815.3,0.02462001]
[1645964170610,1.24247,2816.6,2815.3,0.02462001]
[1645964170810,1.24247,2816.6,2815.1,2.9522]
[1645964170811,0.25,2816.3,2815.1,2.9522]
[1645964171009,0.25,2816.3,2814.8,5.07691516]
[1645964171010,0.05,2815.5,2814.8,5.07691516]
[1645964171210,0.25,2815.5,2815.3,0.02415838]
[1645964171809,0.05,2815.4,2815.3,0.02415838]
[1645964172011,0.05,2815.4,2814.8,1.43501516]
[1645964172410,0.05,2815.4,2814.8,1.45917229]
[1645964172812,0.25,2815.5,2814.8,0.02415713]
[1645964173012,0.05,2815.1,2814.8,0.02415713]
[1645964173213,0.25,2815.5,2814.6,0.1419]
[1645964173416,0.05,2814.7,2814.3,0.1419]
[1645964173617,1.0874,2815.2,2814.6,0.02415839]
[1645964173618,0.4421,2815.1,2814.6,0.02415839]
[1645964173814,0.05,2814.7,2814.6,0.02415839]
[1645964174459,0.05,2814.7,2814.0,1.2398069]
[1645964174656,0.3202,2815.0,2814.0,1.2398069]
[1645964174855,0.3202,2815.0,2814.1,0.0231948]
[1645964174856,0.05,2814.6,2814.1,0.0231948]
[1645964175058,0.0202,2815.0,2814.5,1.12787755]
[1645964177460,0.0702,2815.0,2814.2,0.02319433]
[1645964178110,0.0702,2815.0,2814.0,14.31]
[1645964178311,0.0702,2815.0,2814.1,0.3539]
[1645964178610,0.0202,2815.0,2814.0,3.52907528]
[1645964178810,0.0202,2815.0,2814.0,0.02907528]
[1645964179010,0.05,2814.7,2814.0,0.02907528]
[1645964179216,0.05,2814.7,2813.8,0.496]
[1645964179411,0.01657806,2814.9,2814.6,0.0113975]
[1645964180012,0.05,2814.7,2814.6,0.0113975]
[1645964180612,0.0202,2814.8,2814.6,0.0113975]
[1645964181013,0.05,2814.7,2814.6,0.0113975]
[1645964183267,0.05,2814.7,2813.8,0.04399716]
[1645964183468,0.20777415,2814.6,2813.8,0.04399716]
[1645964183668,0.05,2813.9,2813.8,0.04399716]
[1645964184267,0.25,2814.3,2813.8,0.04399716]
[1645964184472,0.05,2814.2,2813.8,0.04399716]
[1645964184868,0.05,2814.0,2813.8,0.04399716]
[1645964185507,0.05,2814.0,2813.8,1.12073841]
[1645964185708,0.25,2814.3,2813.8,1.12073841]
[1645964185907,0.05,2814.1,2813.8,1.12073841]
[1645964186309,0.05,2813.9,2813.8,0.04731848]
[1645964186709,0.05,2813.9,2813.8,0.00332132]
[1645964186908,0.0100564,2813.7,2813.3,0.01328766]
[1645964187312,0.05,2813.4,2813.3,0.01328766]
[1645964187513,0.30643922,2813.4,2813.3,0.01328766]
[1645964187712,0.44853922,2813.4,2813.3,0.01328766]
[1645964187914,0.74853922,2813.4,2813.3,0.01328766]
[1645964188121,1.57913922,2813.4,2813.3,0.01328766]
[1645964188513,1.57913922,2813.4,2811.9,0.00196813]
[1645964188514,7.8539,2813.3,2811.9,0.00196813]
[1645964188718,7.8539,2813.3,2811.8,0.0501]
[1645964188719,0.25,2813.0,2811.8,0.0501]
[1645964188958,0.1421,2812.9,2811.8,0.0501]
[1645964189149,0.05,2811.9,2811.8,0.0501]
[1645964189755,0.0702,2811.9,2811.8,0.0501]
[1645964190153,0.0702,2811.9,2811.0,1.5]
[1645964190356,0.05,2811.2,2811.0,1.5]
[1645964190551,0.05,2811.2,2811.1,0.04359088]
[1645964190750,0.25,2811.3,2811.1,0.04359088]
[1645964191351,0.5,2811.2,2811.1,0.04359088]
[1645964191552,0.55,2811.2,2811.1,0.04359088]
[1645964192559,0.05,2811.2,2811.1,0.04359088]
[1645964193008,0.0702,2811.2,2811.0,0.00362485]
[1645964193608,0.0702,2811.2,2810.9,0.04472772]
[1645964194007,0.0702,2811.2,2811.0,0.00616317]
[1645964194208,0.0912334,2811.2,2811.1,0.07971339]
[1645964194609,0.0912334,2811.2,2811.1,0.07124339]
[1645964194813,0.0912334,2811.2,2810.8,1.15494903]
[1645964195017,0.0912334,2811.2,2810.6,0.00196269]
[1645964195212,0.0912334,2811.2,2811.0,0.0061631]
[1645964196011,0.2333334,2811.2,2811.0,0.0061631]
[1645964196213,0.2333334,2811.2,2810.3,1.01182995]
[1645964196467,0.05,2810.9,2810.4,0.00196269]
[1645964196660,0.05,2810.9,2810.3,1.01182995]
[1645964197060,0.0412334,2811.2,2810.2,0.0177305]
[1645964197061,0.0202,2810.8,2810.2,0.0177305]
[1645964197262,0.05,2810.4,2810.2,0.0177305]
[1645964198471,0.94036,2810.4,2810.2,0.0177305]
[1645964198670,0.05,2810.4,2810.2,0.0177305]
[1645964198871,0.05,2810.4,2810.2,0.02382534]
[1645964199668,0.05,2810.4,2810.2,0.0177305]
[1645964199869,0.94038,2810.4,2810.2,0.0177305]
[1645964200069,0.94038,2810.4,2810.2,0.02127256]
[1645964200070,0.0202,2810.3,2810.2,0.02127256]
[1645964200314,0.1625,2810.3,2810.2,0.02127256]
[1645964200710,0.1625,2810.3,2809.5,6.93352683]
[1645964201009,0.1625,2810.3,2809.4,1.33849638]
[1645964201010,0.05,2809.6,2809.4,1.33849638]
[1645964201213,0.05,2809.6,2809.3,7.36]
[1645964201411,0.25,2809.8,2809.3,7.36]
[1645964201613,0.05,2809.4,2809.3,7.36]
[1645964202013,0.05,2809.4,2808.7,7.36]
[1645964202215,0.05,2809.2,2808.9,1.44450436]
[1645964202414,0.05,2809.5,2808.9,1.44450436]
[1645964203219,0.3,2809.9,2809.0,3.5]
[1645964203619,0.3,2809.9,2809.8,1.23622485]
[1645964203818,0.3,2809.9,2809.3,7.36]
[1645964204098,0.05,2809.4,2809.3,7.36]
[1645964205696,0.05,2809.4,2808.9,0.0360641]
[1645964205896,0.05,2809.2,2808.9,0.0360641]
[1645964206097,0.2702,2809.9,2809.2,0.00616825]
[1645964206098,0.05,2809.4,2809.2,0.00616825]
[1645964206497,0.05,2809.4,2809.3,1.03447241]
[1645964206895,0.2702,2809.9,2809.5,0.03248409]
[1645964207296,0.25,2809.9,2809.5,0.03248409]
[1645964207497,0.03396378,2810.2,2809.5,0.03248409]
[1645964207704,0.28396378,2810.2,2809.5,0.03248409]
[1645964207909,0.5,2809.7,2809.5,0.03248409]
[1645964208113,0.0202,2809.8,2809.5,0.17478409]
[1645964208509,0.0202,2809.8,2809.6,0.00616794]
[1645964209311,0.0202,2809.8,2809.6,0.1423]
[1645964209510,0.0202,2809.8,2809.6,0.14828278]
[1645964209711,0.00598135,2810.2,2809.6,0.00598278]
[1645964209914,0.00598135,2810.2,2809.6,14.66988278]
[1645964210112,0.00598135,2810.2,2809.6,19.66988278]
[1645964210312,0.00598135,2810.2,2809.6,19.87868721]
[1645964210510,7.1565,2811.6,2809.6,19.6639]
[1645964210816,7.1565,2811.6,2809.7,0.14425738]
[1645964210817,0.00565487,2810.2,2809.7,0.14425738]
[1645964211012,0.00565487,2810.2,2809.8,0.00195738]
[1645964211214,0.00565487,2810.2,2809.9,0.1423]
[1645964211477,0.00565487,2810.2,2809.7,0.14328525]
[1645964211665,0.3539,2811.2,2809.8,1.32660583]
[1645964211965,0.00565499,2810.2,2809.9,0.1423]
[1645964212165,0.00565499,2810.2,2810.0,0.00098525]
[1645964212365,0.00565499,2810.2,2810.1,0.1423]
[1645964212565,0.00565499,2810.2,2809.9,0.1423]
[1645964212769,0.00565499,2810.2,2810.0,0.3539]
[1645964212967,0.5,2811.3,2810.1,0.1423]
[1645964213169,0.00550148,2810.2,2810.1,0.14328525]
[1645964213372,0.00550148,2810.2,2810.1,0.1423]
[1645964213768,0.00550148,2810.2,2810.0,0.3539]
[1645964213974,0.00550148,2810.2,2809.8,1.32660583]
[1645964214368,3.5,2811.2,2810.4,1.44075816]
[1645964214569,0.3923,2811.1,2809.6,0.00550283]
[1645964214770,0.02777972,2810.1,2809.9,0.00631769]
[1645964215802,0.02777972,2810.1,2810.0,1.45708315]
[1645964216402,0.02777972,2810.1,2810.0,12.26708315]
[1645964216803,0.02777972,2810.1,2810.0,1.45708315]
[1645964217001,0.02777972,2810.1,2810.0,1.10318315]
[1645964219054,0.04765467,2810.1,2810.0,1.10318315]
[1645964219258,0.04765467,2810.1,2809.9,0.00631769]
[1645964221957,0.1423,2810.0,2809.9,0.00631769]
[1645964222157,0.0923,2810.0,2809.9,0.00631769]
[1645964223008,0.04765467,2810.1,2809.9,0.00631769]
[1645964224608,0.04765467,2810.1,2809.9,0.01283515]
[1645964225909,0.00554102,2810.2,2809.9,0.01283515]
[1645964226111,0.5,2810.6,2809.9,0.01283515]
[1645964226551,0.00554091,2810.2,2809.9,0.01283515]
[1645964226953,0.5,2810.6,2810.3,0.0035948]
[1645964227552,0.25,2811.1,2810.3,0.0035948]
[1645964227755,0.5,2810.5,2810.3,0.0035948]
[1645964227954,0.5,2810.5,2810.3,1.16921967]
[1645964229755,0.25,2811.1,2810.3,1.16921967]
[1645964230203,0.0025687,2810.5,2810.3,1.16921967]
[1645964231007,0.25,2811.1,2810.3,1.16921967]
[1645964231206,0.00616629,2810.5,2810.3,4.66921967]
[1645964232108,0.25,2811.1,2810.3,4.66921967]
[1645964232307,0.258747,2811.0,2810.3,4.66921967]
[1645964232508,0.00616629,2810.5,2810.3,4.66921967]
[1645964233313,0.25,2811.1,2810.3,4.66921967]
[1645964233514,0.25976185,2811.0,2810.3,4.66921967]
[1645964233715,0.00616629,2810.5,2810.3,4.66921967]
[1645964234164,0.00616629,2810.5,2810.4,0.0183828]
[1645964234561,0.25,2811.1,2810.4,0.0183828]
[1645964234762,0.00616623,2810.6,2810.4,0.02033581]
[1645964234962,0.00616623,2810.6,2810.4,0.0183828]
[1645964235761,0.25,2811.1,2810.4,0.0183828]
[1645964235962,0.25,2811.1,2810.4,0.02033581]
[1645964235963,0.00616616,2810.6,2810.4,0.02033581]
[1645964236163,0.00616616,2810.6,2810.4,0.0183828]
[1645964236773,0.00616616,2810.6,2810.4,0.0068308]
[1645964236967,0.2606109,2810.5,2810.4,0.0068308]
[1645964237167,0.25,2811.1,2810.4,0.00878381]
[1645964237168,0.2606109,2811.0,2810.4,0.00878381]
[1645964237368,0.00616616,2810.6,2810.4,0.0068308]
[1645964237813,0.26060601,2810.5,2810.4,0.0068308]
[1645964239319,0.26060601,2810.5,2810.4,0.0021308]
[1645964239514,0.26060601,2810.5,2810.4,0.00471359]
[1645964239714,0.93145275,2810.6,2810.4,0.00471359]
[1645964239918,0.26060601,2810.5,2810.4,0.00471359]
[1645964240515,0.26060601,2810.5,2810.3,3.39364384]
[1645964241318,0.92528652,2810.5,2810.3,3.39364384]
[1645964242162,0.93145281,2810.5,2810.3,3.39364384]
[1645964242358,0.26060601,2810.4,2810.3,3.39364384]
[1645964242765,0.6708468,2810.5,2810.3,3.39364384]
[1645964242964,0.66468051,2810.5,2810.3,3.39364384]
[1645964243164,0.26060601,2810.4,2810.3,3.39364384]
[1645964243368,0.00616635,2810.5,2810.3,3.39364384]
[1645964243565,0.26060601,2810.4,2810.3,3.39364384]
[1645964244364,0.03070688,2810.5,2810.4,0.00761336]
[1645964244568,0.29131289,2810.5,2810.4,0.00761336]
[1645964245310,0.28514654,2810.5,2810.4,0.00761336]
[1645964246714,0.28514654,2810.5,2810.4,1.24150266]
[1645964246915,0.28514654,2810.5,2810.4,1.22905095]
[1645964247313,0.50616623,2810.6,2810.5,0.44551454]
[1645964247716,0.5,2810.6,2810.5,0.44551454]
[1645964248421,0.5,2810.6,2810.5,11.60941454]
[1645964248824,0.0061661,2810.7,2810.5,11.60941454]
[1645964249060,0.25,2811.1,2810.5,11.60941454]
[1645964249061,0.5,2811.0,2810.5,11.60941454]
[1645964249261,0.5,2811.0,2810.7,11.1639]
[1645964249464,0.5,2811.0,2810.8,14.31]
[1645964249665,0.66468051,2811.6,2811.0,0.3539]
[1645964250065,0.66468051,2811.6,2811.0,11.1639]
[1645964250263,0.66468051,2811.7,2811.0,11.1639]
[1645964250462,0.00616514,2811.4,2810.6,4.7009]
[1645964251063,0.67084565,2811.4,2810.6,4.7009]
[1645964251262,0.67084565,2811.4,2810.6,3.5]
[1645964251464,0.66468051,2811.4,2810.6,3.5]
[1645964251664,0.00616552,2811.1,2810.6,3.5]
[1645964251862,0.25616552,2811.1,2810.6,4.54823473]
[1645964252711,0.25,2811.1,2810.6,4.54823473]
[1645964252913,0.00616571,2811.0,2810.6,3.5]
[1645964253116,0.00616571,2811.0,2810.5,0.44551454]
[1645964253715,0.25,2811.1,2810.5,0.44551454]
[1645964253916,0.91468051,2811.1,2810.5,0.44551454]
[1645964254115,0.00616584,2810.9,2810.5,0.44551454]
[1645964254313,0.00616584,2810.9,2810.8,0.00097569]
[1645964254715,0.00616584,2810.9,2810.7,0.00626866]
[1645964254716,0.81314635,2810.9,2810.7,0.00626866]
[1645964255020,0.66468051,2810.9,2810.7,0.04873494]
[1645964255215,0.66468051,2810.8,2810.5,0.44551454]
[1645964255413,0.66927329,2810.6,2810.5,0.44551454]
[1645964255614,1.11157329,2810.6,2810.5,0.44551454]
[1645964256014,0.4423,2810.6,2810.5,0.44551454]
[1645964256215,1.03273,2810.6,2810.5,0.44551454]
[1645964256467,0.81142338,2810.6,2810.5,0.44551454]
[1645964256657,1.27528948,2810.7,2810.5,0.44551454]
[1645964256856,0.66912338,2810.6,2810.5,0.44551454]
[1645964257057,0.89382199,2810.7,2810.5,0.44551454]
[1645964257457,1.47971624,2811.0,2810.5,0.44551454]
[1645964257458,0.66908845,2810.6,2810.5,0.44551454]
[1645964257865,0.0061661,2810.7,2810.5,0.44551454]
[1645964258663,0.66908845,2810.9,2810.5,0.44551454]
[1645964258864,1.13765589,2811.1,2810.5,0.44551454]
[1645964258865,0.00616603,2810.7,2810.5,0.44551454]
[1645964259167,0.03656895,2810.7,2810.5,0.44551454]
[1645964259764,0.03040292,2810.7,2810.5,0.44551454]
[1645964259966,0.03656895,2810.7,2810.5,0.44551454]
[1645964261028,0.03040292,2810.7,2810.5,0.44551454]
[1645964261229,0.03656895,2810.7,2810.5,0.44551454]
[1645964261829,0.03656895,2810.7,2810.6,1.26291296]
[1645964262030,0.03656895,2810.7,2810.5,0.44551454]
[1645964262229,0.03040292,2810.7,2810.5,0.44551454]
[1645964263633,0.03656895,2810.7,2810.5,0.44551454]
[1645964264656,0.69949137,2810.7,2810.5,0.44551454]
[1645964264858,0.7056574,2810.7,2810.5,0.44551454]
[1645964265658,0.66908845,2810.6,2810.5,0.44551454]
[1645964266467,0.66908845,2810.6,2809.3,2.02881096]
[1645964266468,4.5,2810.4,2809.3,2.02881096]
[1645964266761,4.5,2810.4,2808.4,0.66897026]
[1645964266762,1.82133797,2809.9,2808.4,0.66897026]
[1645964266962,1.82133797,2809.9,2808.5,1.21379156]
[1645964266963,0.3539,2809.5,2808.5,1.21379156]
[1645964267159,0.3539,2809.5,2808.3,1.21379156]
[1645964267160,3.6423,2809.4,2808.3,1.21379156]
[1645964267359,3.6423,2809.4,2808.1,7.55660294]
[1645964267360,0.28113158,2809.3,2808.4,1.21379156]
[1645964267560,0.5,2809.0,2808.5,1.21379156]
[1645964267807,0.5,2809.0,2808.1,6.0705307]
[1645964268013,0.89082,2809.2,2808.1,7.09539334]
[1645964268408,3.5,2809.1,2808.1,7.09539334]
[1645964268608,3.5,2809.1,2808.4,0.00360101]
[1645964268809,0.89082,2809.1,2808.4,0.00360101]
[1645964269009,0.3,2809.2,2808.4,0.00360101]
[1645964269210,0.25,2809.3,2808.6,1.34054217]
[1645964269611,0.25,2809.3,2808.2,0.00194718]
[1645964269810,0.25,2809.3,2808.7,0.00360069]
[1645964270408,0.25,2809.3,2808.7,0.00178036]
[1645964270613,0.25,2809.3,2808.2,0.00194718]
[1645964271009,0.5,2808.7,2808.2,0.00194718]
[1645964271211,0.25,2808.6,2808.1,6.0705307]
[1645964273267,0.25,2808.6,2808.2,0.00357813]
[1645964274266,0.25,2808.6,2808.4,0.00380669]
[1645964274267,3.75,2808.6,2808.4,0.00380669]
[1645964274466,0.1424,2808.5,2808.4,0.00380669]
[1645964274665,3.6424,2808.5,2808.4,0.00380669]
[1645964275511,3.6424,2808.5,2808.4,3.50380669]
[1645964276311,4.6424,2808.5,2808.4,3.45380669]
[1645964276912,1.1424,2808.5,2808.4,3.45380669]
[1645964277113,2.03341,2808.5,2808.4,3.45380669]
[1645964277313,1.03341,2808.5,2808.4,3.45380669]
[1645964277719,0.1424,2808.5,2808.4,3.45380669]
[1645964277918,0.55,2808.6,2808.4,3.45380669]
[1645964278118,0.25,2808.6,2808.4,3.45380669]
[1645964278970,0.28031682,2808.6,2808.4,3.45380669]
[1645964279356,0.28031682,2808.6,2808.4,3.45997257]
[1645964279758,0.28031682,2808.6,2808.4,3.46377917]
[1645964280361,0.28031682,2808.6,2808.4,3.45761329]
[1645964280561,0.28031682,2808.6,2808.4,3.46377917]
[1645964281568,0.28031682,2808.6,2808.4,3.45761329]
[1645964281770,0.28031682,2808.6,2808.4,3.46377917]
[1645964282815,0.28031682,2808.6,2808.4,3.45761329]
[1645964283019,0.28031682,2808.6,2808.4,3.46357355]
[1645964283617,0.28031682,2808.6,2808.3,0.00272309]
[1645964283618,0.28031682,2808.6,2808.1,6.0705307]
[1645964284218,0.00265294,2808.5,2808.1,6.0705307]
[1645964284418,5.0,2808.4,2807.6,0.00194718]
[1645964284619,1.03358,2808.4,2807.4,0.06194718]
[1645964284817,3.8,2808.3,2807.4,0.06]
[1645964285018,4.09821684,2808.3,2807.4,0.06]
[1645964285217,5.09821684,2808.3,2807.4,0.06]
[1645964285417,0.89118,2808.2,2807.8,0.00338061]
[1645964286019,0.1424,2808.1,2807.4,0.01338061]
[1645964286218,1.7824578,2808.0,2807.4,0.01338061]
[1645964286490,1.7826,2807.8,2807.4,0.01338061]
[1645964286669,4.53371,2807.7,2807.4,0.01338061]
[1645964286869,3.5,2807.6,2807.4,0.01244161]
[1645964287069,0.1424,2807.5,2807.4,0.01244161]
[1645964287468,0.89146,2807.3,2806.2,1.17918879]
[1645964287669,4.64145,2807.2,2806.2,1.17918879]
[1645964287869,1.14145,2807.2,2806.2,1.17918879]
[1645964288074,2.0329,2807.2,2806.2,1.17918879]
[1645964288269,0.3,2807.1,2806.0,15.2748]
[1645964288479,4.05,2807.2,2806.0,10.1424]
[1645964288672,0.25,2807.2,2806.0,10.1424]
[1645964288876,0.25,2807.2,2806.1,0.4963]
[1645964289075,0.25,2807.2,2806.1,0.24987459]
[1645964289272,0.25,2807.2,2806.1,0.39237459]
[1645964289872,0.25,2807.2,2806.1,11.20237459]
[1645964290407,0.25,2807.2,2806.1,0.39237459]
[1645964290607,0.25,2807.2,2806.2,0.00194263]
[1645964290806,0.25,2807.2,2806.3,0.1424]
[1645964291006,0.25,2807.2,2806.4,0.25181722]
[1645964291206,0.25,2807.2,2806.6,0.24987459]
[1645964291412,0.25,2807.2,2806.4,0.00194263]
[1645964291613,0.89149,2807.0,2806.4,0.00194263]
[1645964291906,0.89149,2807.0,2806.0,10.0]
[1645964291907,1.19149,2807.0,2806.1,0.00194263]
[1645964292110,1.08563205,2806.8,2806.1,0.00194263]
[1645964292306,0.1424,2806.7,2806.0,10.0]
[1645964292507,0.5,2806.1,2806.0,9.9]
[1645964292707,0.13819997,2807.1,2806.3,0.23614926]
[1645964292910,0.25,2807.2,2806.3,0.23614926]
[1645964293112,0.25,2807.2,2806.4,0.00194263]
[1645964293311,0.3925,2807.2,2806.4,0.00194263]
[1645964293511,0.3925,2807.2,2807.1,1.09771962]
[1645964293967,0.3925,2807.2,2806.4,0.00194263]
[1645964294162,0.03017767,2807.0,2806.4,0.00194263]
[1645964294357,0.03017767,2807.0,2806.5,0.00270221]
[1645964295161,0.92163767,2807.0,2806.5,0.00270221]
[1645964296162,0.1424,2806.9,2806.5,0.00270221]
[1645964296362,0.92163767,2807.0,2806.5,0.00270221]
[1645964296562,0.03017767,2807.0,2806.9,1.34287401]
[1645964297918,0.03017767,2807.0,2806.9,4.84287401]
[1645964298519,0.25,2807.8,2807.0,0.3539]
[1645964298722,0.25,2807.7,2807.0,0.35584263]
[1645964298921,0.25,2807.7,2807.2,0.3539]
[1645964299121,0.25,2808.2,2807.6,7.8539]
[1645964299327,2.40958063,2808.4,2807.8,0.3539]
[1645964299524,2.40958063,2808.4,2808.0,11.1639]
[1645964299721,2.40958063,2808.4,2808.2,0.3539]
[1645964300120,0.00616794,2808.5,2808.2,11.1639]
[1645964300322,0.00616794,2808.5,2808.4,11.1639]
[1645964300724,0.5,2808.7,2808.4,11.1639]
[1645964301123,0.00616818,2808.6,2808.4,0.3539]
[1645964301963,0.5,2808.7,2808.4,0.3539]
[1645964302157,0.25,2809.3,2808.0,0.00194263]
[1645964302363,0.41170361,2809.2,2808.0,3.50194263]
[1645964302561,0.41170361,2809.2,2808.1,0.00194263]
[1645964302765,0.55410361,2809.2,2807.8,3.50194263]
[1645964302965,0.41170361,2809.1,2807.8,3.50194263]
[1645964303165,0.41170361,2809.1,2808.5,1.08266744]
[1645964303368,0.00596441,2808.8,2807.9,1.2201]
[1645964303665,0.00596441,2808.8,2808.0,0.00194263]
[1645964303666,0.25,2808.7,2808.0,0.00194263]
[1645964303868,0.25,2808.7,2807.9,1.2201]
[1645964304068,0.25,2808.7,2808.0,3.5]
[1645964304266,0.25,2808.7,2808.6,0.00264813]
[1645964304866,0.25,2808.7,2808.6,1.10414048]
[1645964305615,0.25,2808.7,2808.6,0.00264813]
[1645964305817,0.66243288,2808.7,2808.6,0.00264813]
[1645964306615,0.25,2808.7,2808.6,0.00264813]
[1645964307217,0.66298144,2808.7,2808.6,0.00264813]
[1645964307821,0.25,2808.7,2808.6,0.00264813]
[1645964308824,0.25,2808.7,2808.6,1.06489201]
[1645964309258,0.25,2808.7,2808.6,0.00264813]
[1645964309461,0.66337009,2808.7,2808.6,0.00264813]
[1645964309664,0.66337009,2808.7,2808.6,3.50264813]
[1645964311065,0.25,2808.7,2808.6,3.50264813]
[1645964311265,0.66429433,2808.7,2808.6,3.50264813]
[1645964312709,0.66429433,2808.7,2808.6,1.89685295]
[1645964313114,0.41429433,2808.7,2808.6,1.89685295]
[1645964314416,0.41429433,2808.7,2808.6,1.89936225]
[1645964315416,0.38519146,2808.7,2808.6,1.89936225]
[1645964315616,0.38519146,2808.7,2808.6,3.26927029]
[1645964316320,0.38519146,2808.7,2808.6,3.25915593]
[1645964316565,0.38519146,2808.7,2808.6,14.06915593]
[1645964316762,0.00616559,2808.8,2808.6,21.19005593]
[1645964316964,0.38519146,2808.7,2808.6,21.19005593]
[1645964317565,0.38519146,2808.7,2808.6,10.38005593]
[1645964317770,0.66842991,2809.2,2808.6,10.38005593]
[1645964317771,0.66842991,2809.5,2808.8,0.3539]
[1645964317975,0.5,2809.8,2809.1,7.8539]
[1645964318169,0.5,2809.8,2809.3,0.3539]
[1645964318370,0.66842991,2810.2,2809.5,0.3539]
[1645964318792,0.66842991,2810.3,2810.1,1.35580155]
[1645964318969,0.559,2810.2,2810.1,1.35580155]
[1645964319669,0.559,2810.2,2809.6,0.3539]
[1645964320071,0.559,2810.1,2809.6,0.3539]
[1645964320305,0.559,2810.1,2809.3,3.5]
[1645964320306,0.559,2810.1,2809.5,0.3539]
[1645964320709,0.559,2810.1,2810.0,1.24390975]
[1645964323512,0.559,2810.1,2810.0,1.19390975]
[1645964324356,0.559,2810.1,2810.0,0.00478258]
[1645964324957,0.00616381,2810.2,2810.0,0.00478258]
[1645964325963,0.559,2810.3,2810.0,0.00478258]
[1645964326162,0.00616375,2810.2,2810.0,0.00478258]
[1645964327062,0.559,2810.3,2810.0,0.00478258]
[1645964327462,0.14846375,2810.2,2810.0,0.00478258]
[1645964328312,0.1423,2810.2,2810.0,0.00478258]
[1645964328511,0.7013,2810.3,2810.0,0.00478258]
[1645964328713,0.56516375,2810.2,2810.0,0.00478258]
[1645964328911,0.1423,2810.1,2810.0,0.00478258]
[1645964329914,0.56516381,2810.2,2810.0,0.00478258]
[1645964330716,0.559,2810.2,2810.0,0.00478258]
[1645964330916,0.56516375,2810.2,2810.0,0.00478258]
[1645964331965,0.559,2810.2,2810.0,0.00478258]
[1645964332364,0.56516375,2810.2,2810.0,0.00478258]
[1645964332973,0.56516375,2810.2,2809.3,10.42571212]
[1645964333167,0.559,2810.2,2809.3,10.42571212]
[1645964333369,0.56516375,2810.2,2810.0,2.0]
[1645964334372,0.559,2810.2,2810.1,0.00453135]
[1645964334572,0.56516375,2810.2,2810.1,0.00453135]
[1645964335626,0.559,2810.2,2810.1,0.00453135]
[1645964338028,0.95407495,2810.2,2810.1,0.00453135]
[1645964338831,1.09637495,2810.2,2810.1,0.00453135]
[1645964339469,1.09637495,2810.2,2810.1,0.00226508]
[1645964339671,2.00817495,2810.2,2810.1,0.00226508]
[1645964340172,2.67660486,2810.2,2810.1,0.00226508]
[1645964340573,2.97660486,2810.2,2810.1,0.00226508]
[1645964340780,3.86709486,2810.2,2810.1,0.00226508]
[1645964341573,3.72479486,2810.2,2810.1,0.00226508]
[1645964341974,3.86709486,2810.2,2810.1,0.00226508]
[1645964342174,3.19866495,2810.2,2810.1,0.00226508]
[1645964342376,1.7620792,2810.2,2810.1,0.00226508]
[1645964342577,0.95407495,2810.2,2810.1,0.00226508]
[1645964343444,1.6197792,2810.2,2810.1,0.00226508]
[1645964344040,1.059,2810.1,2810.0,1.9932142]
[1645964344240,1.45407495,2810.1,2810.0,1.9932142]
[1645964344643,1.45407495,2810.1,2810.0,3.2114863]
[1645964344841,1.45407495,2810.1,2810.0,1.9932142]
[1645964345046,1.059,2810.1,2810.0,1.9932142]
[1645964345240,1.46446755,2810.1,2810.0,1.9932142]